[Event "Women Accentus DAQ Blitz 2022"]
[Site "Biel"]
[Date "2022.07.17"]
[Round "14.2"]
[White "Keymer, Cecilia"]
[Black "Moracchini, Margaux"]
[Result "0-1"]
[ECO "E62"]
[WhiteElo "1652"]
[BlackElo "1937"]
[Annotator "TA"]
[PlyCount "69"]
[EventDate "2022.07.17"]
[EventType "tourn"]
[EventCountry "SUI"]
[SourceTitle "playchess.com"]
[Source "ChessBase"]
[SourceQuality "1"]
[TimeControl "180+2"]

{[%evp 24,69,0,0,35,48,54,50,39,-23,15,0,20,0,41,-68,-54,-55,-7,-41,-25,-68,-40,-99,-12,-97,-9,-12,0,0,0,-47,0,-36,-6,-6,-8,-76,-13,-114,-13,-82,0,0,0,-131,-106,-229]} 1. d4 {[%emt 0:00:01]} Nf6 {[%emt 0:00:01]} 2. c4 {[%emt 0:00:01]} g6 {[%emt 0:00:01]} 3. g3 {[%emt 0:00:00]} Bg7 {[%emt 0:00:01]} 4. Bg2 {[%emt 0:00:01]} d6 {[%emt 0:00:10]} 5. Nc3 {[%emt 0:00:01]} O-O {[%emt 0:00:07]} 6. Nf3 {[%emt 0:00:01]} Nc6 {[%emt 0:00:19]} 7. O-O {[%emt 0:00:01]} Bf5 {[%emt 0:00:03]} 8. Nh4 {[%emt 0:00:23]} Bd7 {[%emt 0:00:03]} 9. e4 {[%emt 0:00:12]} e5 {[%emt 0:00:09]} 10. Nf3 {[%emt 0:00:19]} Bg4 {[%emt 0:00:18]} 11. d5 {[%emt 0:00:15]} Nd4 {[%emt 0:00:02]} 12. h3 {[%emt 0:00:14]} Bxf3 {[%emt 0:00:04]} 13. Bxf3 {[%emt 0:00:01] [#]} h5 $146 {[%emt 0:00:24] E62: King's Indian: Fianchetto: 6...c6 and Panno Variation (6...Nc6) without ...a6.} ({Predecessor:} 13... Nd7 14. Bg2 c5 15. Be3 f5 16. f4 exf4 17. Bxf4 Ne5 18. b3 g5 19. Be3 Ng6 20. Rc1 f4 21. Bxd4 Bxd4+ {0-1 (44) Franco Valencia,B (2159)-Barrientos Chavarriaga,S (2504) Cartagena 2019}) 14. Bg2 {[%emt 0:00:05]} Nd7 {[%emt 0:00:17]} 15. Be3 {[%emt 0:00:15]} c5 {[%emt 0:00:08] White is slightly better.} 16. Qd2 {[%emt 0:00:28]} (16. dxc6 $14 bxc6 17. Ne2) 16... Bf6 {[%emt 0:00:35]} 17. Rfe1 {[%emt 0:00:13]} Re8 {[%emt 0:00:07]} 18. Rad1 {[%emt 0:00:04]} Nf8 {[%emt 0:00:03]} 19. Bxd4 {[%emt 0:00:27]} (19. Rb1 $14) 19... exd4 {[%emt 0:00:05]} 20. Ne2 {[%emt 0:00:04]} Bg5 {[%emt 0:00:06]} (20... h4 $15) 21. Qd3 {[%emt 0:00:07]} (21. f4 $5 {[%cal Rf4g5]} Bf6 22. b4 $11) 21... Nd7 {[%emt 0:00:07]} 22. Qb3 {[%emt 0:00:07]} b6 {[%emt 0:00:04]} 23. Nf4 {[%emt 0:00:06]} (23. f4 $15 Bf6 24. Rf1) 23... Ne5 {[%emt 0:00:04]} (23... h4 $17) 24. Qc2 {[%emt 0:00:10]} (24. h4 $11 Bf6 25. Nd3) 24... Qf6 {[%emt 0:00:07]} (24... h4 $17 25. Rf1 Qe7) 25. Nd3 $11 {[%emt 0:00:07]} Bh6 {[%emt 0:00:12]} 26. Nxe5 {[%emt 0:00:03]} Qxe5 {[%emt 0:00:07]} 27. Rd3 {[%emt 0:00:06]} (27. h4 $11 {might be stronger.}) 27... Bg7 {[%emt 0:00:01]} (27... h4 $1 $15) 28. Rf3 {[%emt 0:00:02]} Re7 {[%emt 0:00:03][%cal Of7f5]} 29. Ra3 {[%emt 0:00:01]} Rae8 {[%emt 0:00:01]} 30. Qd3 {[%emt 0:00:00] [#]} (30. f4 $11 d3 31. Rxd3 Qxb2 32. Qxb2 Bxb2 33. Kh2) 30... Bh6 {[%emt 0:00:06]} (30... f5 $1 $17) 31. Kh1 {[%emt 0:00:01]} (31. Rf1 $11) 31... Qf6 {[%emt 0:00:00]} (31... f5 $17 {White should prevent ...Qf6.} 32. h4 f4) 32. Kg1 {[%emt 0:00:01]} (32. Rf1 $11 {keeps the balance.}) 32... Bg5 {[%emt 0:00:01]} ({Black should play} 32... h4 $17) 33. f4 {[%emt 0:00:05]} Bh6 {[%emt 0:00:02]} 34. Qf3 {[%emt 0:00:03]} (34. h4 $11 {remains equal.}) 34... h4 $17 {[%emt 0:00:02] Threatens to win with ...hxg3.} 35. Kh2 {[%emt 0:00:07] Weighted Error Value: White=0.50/Black=0.45} (35. e5 $17 {was worth a try.} dxe5 36. fxe5) 0-1

[Event "Women Accentus DAQ Blitz 2022"]
[Site "Biel"]
[Date "2022.07.17"]
[Round "14.4"]
[White "Zhuang, Yongzhe"]
[Black "Tamrazyan, Gohar"]
[Result "1-0"]
[ECO "B22"]
[WhiteElo "1838"]
[BlackElo "1916"]
[Annotator "TA"]
[PlyCount "61"]
[EventDate "2022.07.17"]
[EventType "tourn"]
[EventCountry "SUI"]
[SourceTitle "playchess.com"]
[Source "ChessBase"]
[SourceQuality "1"]
[TimeControl "180+2"]

{[%evp 12,61,28,12,33,15,36,52,134,156,195,193,183,189,216,200,206,206,193,195,222,177,203,210,221,221,224,234,231,172,324,335,330,311,499,499,497,491,489,487,462,458,379,320,537,390,639,477,733,722,5643,2245]} 1. e4 {[%emt 0:00:01]} c5 {[%emt 0:00:00]} 2. c3 {[%emt 0:00:01]} d5 {[%emt 0:00:01]} 3. exd5 {[%emt 0:00:02]} Qxd5 {[%emt 0:00:00]} 4. d4 {[%emt 0:00:01]} Nc6 {[%emt 0:00:01]} 5. Nf3 {[%emt 0:00:01]} Bg4 {[%emt 0:00:01]} 6. dxc5 {[%emt 0:00:07]} Qxd1+ {[%emt 0:00:02]} 7. Kxd1 {[%emt 0:00:01]} O-O-O+ {[%emt 0:00:03] B22: Sicilian: 2 c3.} 8. Nbd2 {[%emt 0:00:04]} e5 {[%emt 0:00:01]} 9. b4 {[%emt 0:00:01]} e4 {[%emt 0:00:07]} ({Black should try} 9... Nf6 $14) 10. h3 $16 {[%emt 0:00:02]} Bxf3+ {[%emt 0:00:17]} 11. gxf3 {[%emt 0:00:02]} exf3 {[%emt 0:00:01]} 12. Kc2 {[%emt 0:00:02]} Nf6 {[%emt 0:00:04]} 13. Nxf3 {[%emt 0:00:06] [#]} Be7 $146 {[%emt 0:00:11]} ({Predecessor:} 13... g6 14. Ng5 Rd7 15. Bb5 h6 16. Nf3 Bg7 17. Bxc6 bxc6 18. Nd4 Ne4 19. Be3 Kb7 {1-0 (39) Wyza,M (1774)-Chua,J (1688) Buxton 2012}) 14. Be3 {[%emt 0:00:01]} Nd5 {[%emt 0:00:01]} 15. Bd2 {[%emt 0:00:12]} Bf6 {[%emt 0:00:11]} 16. Bc4 {[%emt 0:00:10]} Rhe8 {[%emt 0:00:23]} 17. Rae1 {[%emt 0:00:06] [#] Prevents Re4. Rxe8 is the strong threat.} Re7 {[%emt 0:00:46]} 18. Rxe7 {[%emt 0:00:08]} Ncxe7 {[%emt 0:00:05]} 19. a4 {[%emt 0:00:07]} Nc6 {[%emt 0:00:28]} 20. Rd1 {[%emt 0:00:17]} Ne5 $2 {[%emt 0:00:13]} (20... Nxc3 {keeps fighting.} 21. Bxc3 Rxd1) 21. Nxe5 $18 {[%emt 0:00:02]} Bxe5 {[%emt 0:00:01]} 22. Bg5 {[%emt 0:00:16][%csl LRd5,LRd8]} f6 $2 {[%emt 0:00:10]} (22... Nf6 23. Re1 (23. Bxf7 Rxd1 24. Kxd1 Ne4 $16) 23... Bc7 24. Bxf7 Rf8) 23. Bxd5 {[%emt 0:00:03]} fxg5 {[%emt 0:00:02] [#]} 24. Bxb7+ {[%emt 0:00:09][%mdl 512]} Kc7 {[%emt 0:00:02] White must now prevent ...Rxd1.} 25. Rxd8 {[%emt 0:00:05]} Kxd8 {[%emt 0:00:01][%mdl 4096] Endgame KB-KB} 26. Be4 {[%emt 0:00:02]} h5 {[%emt 0:00:03]} 27. Bf3 {[%emt 0:00:06]} g6 $2 {[%emt 0:00:02]} (27... Bh2 {was called for.} 28. Bxh5 Ke7) 28. Be4 {[%emt 0:00:03]} g4 $2 {[%emt 0:00:07]} (28... Kc8 29. Bxg6 h4) 29. hxg4 {[%emt 0:00:02] White is clearly winning.} h4 {[%emt 0:00:01]} (29... hxg4 $142 30. a5 Kc7) 30. b5 {[%emt 0:00:07][%cal Bb4b5,Bb5b6][%mdl 32]} g5 {[%emt 0:00:01]} 31. b6 {[%emt 0:00:03] Black got outplayed after the opening.  Weighted Error Value: White=0.08 (flawless) /Black=0.65} 1-0